fUST/lending_fUST_20240106
["ID","MTS","AMOUNT","RATE_DAILY","PERIOD"]
[310372922,1704519038802,-500.0,0.00035616,3]
[310372923,1704519038811,-500.0,0.00035616,3]
[310372924,1704519038820,-506.30776035,0.00035616,3]
[310372925,1704519038830,-453.08820594,0.00035616,2]
[310372926,1704519038840,-212.85803751,0.00035616,2]
[310372927,1704519038850,-500.0,0.00035616,3]
[310372928,1704519038860,-337.06367174,0.00035616,3]
[310372929,1704519038869,-514.15754476,0.00035616,14]
[310372930,1704519038879,-500.0,0.00035616,3]
[310372931,1704519038888,-500.0,0.00035616,3]
[310372932,1704519038899,-500.0,0.00035616,3]
[310372933,1704519038909,-358.33337075,0.00035616,3]
[310372934,1704519038919,-500.0,0.00035616,3]
[310372935,1704519038929,-597.78004292,0.00035616,3]
[310372936,1704519038939,-500.0,0.00035616,3]
[310372937,1704519038950,-500.0,0.00035616,3]
[310372938,1704519038961,-502.72305038,0.00035616,3]
[310372939,1704519038972,-500.0,0.00035616,3]
[310372940,1704519038982,-500.0,0.00035616,3]
[310372941,1704519038992,-663.71,0.00035616,3]
[310372942,1704519039004,-510.97783528,0.00035616,3]
[310372943,1704519039016,-506.57414684,0.00035616,3]
[310372944,1704519039027,-511.16309898,0.00035616,3]
[310372945,1704519039037,-501.80203555,0.00035616,2]
[310372946,1704519039048,-500.0,0.00035616,3]
[310372947,1704519039057,-500.0,0.00035616,3]
[310372948,1704519039066,-500.0,0.00035616,3]
[310372949,1704519039078,-442.01695768,0.00035616,3]
[310372950,1704519039087,-500.0,0.00035616,3]
[310372951,1704519039202,-500.0,0.00035616,3]
[310372952,1704519039212,-502.00846595,0.00035616,3]
[310372953,1704519039222,-500.0,0.00035616,3]
[310372954,1704519039231,-500.0,0.00035616,3]
[310372955,1704519039239,-500.0,0.00035616,3]
[310372956,1704519039249,-1667.24,0.00035616,3]
[310372957,1704519039258,-525.48480124,0.00035616,3]
[310372958,1704519039271,-500.0,0.00035616,3]
[310372959,1704519039281,-500.0,0.00035616,3]
[310372960,1704519039290,-501.77406774,0.00035616,30]
[310372961,1704519039299,-500.0,0.00035616,3]
[310372962,1704519039309,-500.0,0.00035616,3]
[310372963,1704519039318,-511.097766,0.00035616,3]
[310372964,1704519039327,-500.0,0.00035616,3]
[310372965,1704519039336,-500.0,0.00035616,3]
[310372966,1704519039345,-500.0,0.00035616,3]
[310372967,1704519039354,-500.0,0.00035616,3]
[310372968,1704519039365,-500.0,0.00035616,3]
[310372969,1704519039374,-500.0,0.00035616,3]
[310372970,1704519039383,-502.2428841,0.00035616,3]
[310372971,1704519039392,-500.0,0.00035616,3]
[310372972,1704519039402,-505.29088612,0.00035616,3]
[310372973,1704519039412,-9724.27,0.00035616,3]
[310372974,1704519039421,-500.0,0.00035616,3]
[310372975,1704519039430,-1506.95,0.00035616,3]
[310372976,1704519039439,-500.0,0.00035616,3]
[310372977,1704519039449,-517.60482023,0.00035616,3]
[310372978,1704519039459,-966.27,0.00035616,3]
[310372979,1704519039468,-500.0,0.00035616,3]
[310372980,1704519039478,-500.0,0.00035616,3]
[310372981,1704519039487,-500.0,0.00035616,3]
[310372982,1704519039497,-500.0,0.00035616,3]
[310372983,1704519039506,-500.0,0.00035616,3]
[310372984,1704519039518,-533.57313091,0.00035616,3]
[310372985,1704519039528,-500.0,0.00035616,3]
[310372986,1704519039537,-515.89,0.00035616,3]
[310372987,1704519039547,-500.0,0.00035616,3]
[310372988,1704519039556,-194.38429124,0.00035616,7]
[310372989,1704519039566,-500.0,0.00035616,3]
[310372990,1704519039575,-500.0,0.00035616,3]
[310372991,1704519039585,-500.0,0.00035616,3]
[310372992,1704519039594,-515.0206101,0.00035616,3]
[310372993,1704519039603,-512.17019467,0.00035616,3]
[310372994,1704519039612,-500.0,0.00035616,3]
[310372995,1704519039621,-500.0,0.00035616,3]
[310372996,1704519039631,-500.08697044,0.00035616,3]
[310372997,1704519039641,-166.364766,0.00035616,120]
[310372998,1704519039650,-159.0,0.00035775,2]
[310372999,1704519039659,-1310.93195516,0.00035798,2]
[310373000,1704519039673,-1242.22906884,0.00035798,2]
[310373001,1704519039682,-1125.85384539,0.000358,5]
[310373002,1704519039694,-11135.81065255,0.000358,5]
[310373003,1704519039703,-500.94262929,0.0003589,3]
[310373004,1704519039713,-511.00435323,0.0003589,3]
[310373005,1704519039722,-506.48336976,0.0003589,3]
[310373006,1704519039731,-500.0,0.0003589,3]
[310373007,1704519039741,-507.01927649,0.0003589,3]
[310373008,1704519039750,-505.81350492,0.0003589,3]
[310373009,1704519039760,-507.78877084,0.0003589,3]
[310373010,1704519039771,-500.0,0.0003589,3]
[310373011,1704519039781,-510.00178322,0.0003589,3]
[310373012,1704519039790,-663.71,0.0003589,3]
[310373013,1704519039799,-509.44134385,0.0003589,3]
[310373014,1704519039809,-500.0,0.0003589,3]
[310373015,1704519039818,-500.0,0.0003589,3]
[310373016,1704519039827,-505.08561459,0.0003589,3]
[310373017,1704519039837,-529.41381062,0.0003589,3]
[310373018,1704519039847,-521.59429854,0.0003589,3]
[310373019,1704519039857,-527.67346704,0.0003589,3]
[310373020,1704519039866,-526.05114037,0.0003589,3]
[310373021,1704519039875,-1667.24,0.0003589,3]
[310373022,1704519039884,-500.0,0.0003589,3]
[310373023,1704519039894,-511.82509961,0.0003589,3]
[310373024,1704519039903,-511.15113817,0.0003589,3]
[310373025,1704519039913,-508.31365666,0.0003589,3]
[310373026,1704519039922,-500.0,0.0003589,3]
[310373027,1704519039932,-550.81688216,0.0003589,3]
[310373028,1704519039942,-514.17023555,0.0003589,3]
[310373029,1704519039954,-500.0,0.0003589,3]
[310373030,1704519039963,-500.0,0.0003589,3]
[310373031,1704519039973,-500.0,0.0003589,3]
[310373032,1704519039982,-229.52217026,0.0003589,3]
[310373033,1704519039992,-9724.27,0.0003589,3]
[310373034,1704519040001,-514.40614223,0.0003589,3]
[310373035,1704519040010,-1506.95,0.0003589,3]
[310373036,1704519040021,-507.08090987,0.0003589,3]
[310373037,1704519040031,-966.27,0.0003589,3]
[310373039,1704519040041,-531.73227445,0.0003589,3]
[310373040,1704519040050,-500.67464367,0.0003589,3]
[310373041,1704519040059,-520.9424481,0.0003589,3]
[310373042,1704519040069,-525.09020232,0.0003589,3]
[310373043,1704519040078,-502.12330031,0.0003589,3]
[310373044,1704519040087,-418.68360299,0.0003589,3]
[310373045,1704519040097,-515.89,0.0003589,3]
[310373046,1704519040107,-500.0,0.0003589,3]
[310373047,1704519040116,-404.45932086,0.0003589,3]
[310373048,1704519040125,-503.84331703,0.0003589,3]
[310373049,1704519040135,-500.0,0.0003589,3]
[310373050,1704519040144,-523.03150165,0.0003589,3]
[310373051,1704519040153,-518.86235743,0.0003589,3]
[310373052,1704519040162,-171.109984,0.00035994,2]
[310373053,1704519040171,-197.440071,0.00035994,2]
[310373054,1704519040180,-170.93356,0.00035994,2]
[310373055,1704519040189,-789.760284,0.00035994,2]
[310373056,1704519040199,-164.102703,0.00035994,2]
[310373057,1704519040208,-166.957378,0.00035994,2]
[310373058,1704519040217,-500.0,0.00036164,3]
[310373059,1704519040227,-500.0,0.00036164,3]
[310373060,1704519040236,-663.71,0.00036164,3]
[310373061,1704519040245,-500.0,0.00036164,3]
[310373062,1704519040256,-500.0,0.00036164,3]
[310373063,1704519040268,-1667.24,0.00036164,3]
[310373064,1704519040278,-417.15089141,0.00036164,3]
[310373065,1704519040287,-500.0,0.00036164,3]
[310373066,1704519040296,-1478.5610376,0.00036164,4]
[310373067,1704519040306,-500.0,0.00036164,3]
[310373068,1704519040314,-500.0,0.00036164,3]
[310373069,1704519040323,-500.0,0.00036164,3]
[310373070,1704519040344,-9724.27,0.00036164,3]
[310373071,1704519040355,-1506.95,0.00036164,3]
[310373072,1704519040366,-966.27,0.00036164,3]
[310373073,1704519040375,-515.89,0.00036164,3]
[310373074,1704519040385,-383.63532071,0.00036164,3]
[310373075,1704519040395,-500.0,0.00036164,3]
[310373076,1704519040405,-500.0,0.00036438,3]
[310373077,1704519040415,-223.46103181,0.00036438,3]
[310373078,1704519040425,-663.71,0.00036438,3]
[310373079,1704519040434,-500.0,0.00036438,3]
[310373080,1704519040444,-500.0,0.00036438,3]
[310373081,1704519040454,-1667.24,0.00036438,3]
[310373082,1704519040464,-500.0,0.00036438,3]
[310373083,1704519040474,-255.56943756,0.00036438,3]
[310373084,1704519040484,-258.16133869,0.00036438,3]
[310373085,1704519040493,-500.0,0.00036438,3]
[310373086,1704519040503,-9724.27,0.00036438,3]
[310373087,1704519040512,-1506.95,0.00036438,3]
[310373088,1704519040522,-966.27,0.00036438,3]
[310373089,1704519040532,-515.89,0.00036438,3]
[310373090,1704519040542,-500.0,0.00036438,3]
[310373091,1704519040552,-197.440071,0.00036443,2]
[310373092,1704519040561,-789.760284,0.00036443,2]
[310373093,1704519040571,-1272.00604442,0.00036458,2]
[310373094,1704519040581,-4817.39071375,0.00036495,3]
[310373095,1704519040590,-903.26075883,0.00036515,2]
[310373096,1704519040600,-422.70705592,0.00036712,3]
[310373097,1704519040610,-663.71,0.00036712,3]
[310373098,1704519040619,-500.0,0.00036712,3]
[310373099,1704519040629,-500.0,0.00036712,3]
[310373100,1704519040638,-1667.24,0.00036712,3]
[310373101,1704519040648,-500.0,0.00036712,3]
[310373102,1704519040658,-500.0,0.00036712,3]
[310373103,1704519040667,-9724.27,0.00036712,3]
[310373104,1704519040677,-1506.95,0.00036712,3]
[310373105,1704519040687,-966.27,0.00036712,3]
[310373106,1704519040696,-515.89,0.00036712,3]
[310373107,1704519040706,-472.67650371,0.00036712,3]
[310373108,1704519040715,-197.440071,0.00036893,2]
[310373109,1704519040725,-789.760284,0.00036893,2]
[310373110,1704519040734,-166.957378,0.00036893,2]
[310373111,1704519040743,-15528.05810637,0.000369,5]
[310373112,1704519040752,-502.971403,0.000369,7]
[310373113,1704519040762,-151.0,0.00036969,2]
[310373114,1704519040772,-663.71,0.00036986,3]
[310373115,1704519040782,-500.0,0.00036986,3]
[310373116,1704519040792,-500.0,0.00036986,3]
[310373117,1704519040801,-1667.24,0.00036986,3]
[310373118,1704519040811,-500.0,0.00036986,3]
[310373119,1704519040820,-500.0,0.00036986,3]
[310373120,1704519040830,-9724.27,0.00036986,3]
[310373121,1704519040839,-1506.95,0.00036986,3]
[310373122,1704519040849,-966.27,0.00036986,3]
[310373123,1704519040859,-515.89,0.00036986,3]
[310373124,1704519040868,-512.32994057,0.00037,7]
[310373125,1704519040878,-2553.161024,0.00037075,2]
[310373126,1704519040888,-663.71,0.0003726,3]
[310373127,1704519040897,-500.0,0.0003726,3]
[310373128,1704519040906,-500.0,0.0003726,3]
[310373129,1704519040914,-1667.24,0.0003726,3]
[310373130,1704519040924,-500.0,0.0003726,3]
[310373131,1704519040934,-500.0,0.0003726,3]
[310373132,1704519040943,-9724.27,0.0003726,3]
[310373133,1704519040957,-1506.95,0.0003726,3]
[310373134,1704519040967,-966.27,0.0003726,3]
[310373135,1704519040977,-515.89,0.0003726,3]
[310373136,1704519040986,-197.440071,0.00037343,2]
[310373137,1704519040995,-789.760284,0.00037343,2]
[310373138,1704519041005,-663.71,0.00037534,3]
[310373139,1704519041017,-511.72838361,0.00037534,3]
[310373140,1704519041026,-500.0,0.00037534,3]
[310373141,1704519041035,-1667.24,0.00037534,3]
[310373142,1704519041045,-500.0,0.00037534,3]
[310373143,1704519041054,-331.22479234,0.00037534,3]
[310373144,1704519041064,-9724.27,0.00037534,3]
[310373145,1704519041073,-1506.95,0.00037534,3]
[310373146,1704519041084,-966.27,0.00037534,3]
[310373147,1704519041094,-515.89,0.00037534,3]
[310373148,1704519041104,-219.96908355,0.0003777,30]
[310373149,1704519041115,-171.109984,0.00037793,2]
[310373150,1704519041125,-197.440071,0.00037793,2]
[310373151,1704519041135,-789.760284,0.00037793,2]
[310373152,1704519041145,-166.957378,0.00037793,2]
[310373153,1704519041156,-663.71,0.00037808,3]
[310373154,1704519041166,-500.0,0.00037808,3]
[310373155,1704519041176,-1667.24,0.00037808,3]
[310373156,1704519041186,-500.0,0.00037808,3]
[310373157,1704519041196,-9724.27,0.00037808,3]
[310373158,1704519041206,-1506.95,0.00037808,3]
[310373159,1704519041216,-966.27,0.00037808,3]
[310373160,1704519041225,-515.89,0.00037808,3]
[310373161,1704519041234,-500.0,0.000379,7]
[310373162,1704519041244,-1570.12292109,0.00038,4]
[310373163,1704519041254,-2361.87259161,0.00038,30]
[310373164,1704519041265,-6890.07317527,0.00038,7]
[310373165,1704519041276,-244.12597039,0.00038,30]
[310373166,1704519041287,-663.71,0.00038082,3]
[310373167,1704519041296,-500.0,0.00038082,3]
[310373168,1704519041305,-1667.24,0.00038082,3]
[310373169,1704519041315,-500.0,0.00038082,3]
[310373170,1704519041324,-9724.27,0.00038082,3]
[310373171,1704519041334,-1506.95,0.00038082,3]
[310373172,1704519041343,-966.27,0.00038082,3]
[310373173,1704519041355,-515.89,0.00038082,3]
[310373174,1704519041365,-2553.161024,0.00038352,2]
[310373175,1704519041377,-663.71,0.00038356,3]
[310373176,1704519041387,-500.0,0.00038356,2]
[310373177,1704519041397,-500.0,0.00038356,3]
[310373178,1704519041407,-1667.24,0.00038356,3]
[310373179,1704519041417,-500.0,0.00038356,3]
[310373180,1704519041427,-9724.27,0.00038356,3]
[310373181,1704519041437,-1506.95,0.00038356,3]
[310373182,1704519041447,-966.27,0.00038356,3]
[310373183,1704519041456,-515.89,0.00038356,3]
[310373184,1704519041466,-663.71,0.0003863,3]
[310373185,1704519041476,-500.0,0.0003863,3]
[310373186,1704519041485,-1667.24,0.0003863,3]
[310373187,1704519041494,-500.0,0.0003863,3]
[310373188,1704519041504,-9724.27,0.0003863,3]
[310373189,1704519041513,-1506.95,0.0003863,3]
[310373190,1704519041527,-966.27,0.0003863,3]
[310373191,1704519041537,-515.89,0.0003863,3]
[310373192,1704519041646,-857.61279604,0.00038721,2]
[310373193,1704519041656,-502.0,0.0003874,2]
[310373194,1704519041665,-175.24530589,0.000388,45]
[310373195,1704519041675,-500.0,0.000389,7]
[310373196,1704519041685,-663.71,0.00038904,3]
[310373197,1704519041694,-500.0,0.00038904,3]
[310373198,1704519041703,-1667.24,0.00038904,3]
[310373199,1704519041712,-500.0,0.00038904,3]
[310373200,1704519041721,-9724.27,0.00038904,3]
[310373201,1704519041731,-1506.95,0.00038904,3]
[310373202,1704519041740,-966.27,0.00038904,3]
[310373203,1704519041749,-515.89,0.00038904,3]
[310373204,1704519041759,-441.20251203,0.00039,2]
[310373205,1704519041771,-154.82968734,0.00039,4]
[310373206,1704519041781,-704.76462942,0.00039,4]
[310373207,1704519041791,-151.0,0.00039084,2]
[310373208,1704519041802,-7521.0,0.0003915,60]
[310373209,1704519041813,-283.0,0.0003915,60]
[310373210,1704519041823,-242.0,0.0003915,7]
[310373211,1704519041833,-249.0,0.0003915,7]
[310373212,1704519041842,-208.0,0.0003915,7]
[310373213,1704519041851,-7521.0,0.0003916,60]
[310373214,1704519041860,-283.0,0.0003916,60]
[310373215,1704519041870,-242.0,0.0003916,7]
[310373216,1704519041879,-249.0,0.0003916,7]
[310373217,1704519041889,-150.0,0.0003916,7]
[310373218,1704519041899,-7521.0,0.0003917,60]
[310373219,1704519041909,-283.0,0.0003917,60]
[310373220,1704519041919,-160.0,0.0003917,60]
[310373221,1704519041929,-242.0,0.0003917,7]
[310373222,1704519041939,-249.0,0.0003917,7]
[310373223,1704519041951,-150.0,0.0003917,7]
[310373224,1704519041963,-663.71,0.00039178,3]
[310373225,1704519041973,-500.0,0.00039178,3]
[310373226,1704519041982,-1667.24,0.00039178,3]
[310373227,1704519041994,-500.0,0.00039178,3]
[310373228,1704519042003,-9724.27,0.00039178,3]
[310373229,1704519042013,-1506.95,0.00039178,3]
[310373230,1704519042026,-966.27,0.00039178,3]
[310373231,1704519042036,-515.89,0.00039178,3]
[310373232,1704519042045,-160.0,0.0003918,60]
[310373233,1704519042055,-160.0,0.0003919,60]
[310373234,1704519042065,-390.73426738,0.00039452,10]
[310373235,1704519042074,-1230.81294226,0.00039452,10]
[310373236,1704519042084,-505.89306686,0.00039452,7]
[310373237,1704519042094,-344.0993367,0.00039452,7]
[310373238,1704519042103,-663.71,0.00039452,3]
[310373239,1704519042113,-500.0,0.00039452,3]
[310373240,1704519042122,-1667.24,0.00039452,3]
[310373241,1704519042131,-500.0,0.00039452,3]
[310373242,1704519042140,-9724.27,0.00039452,3]
[310373243,1704519042150,-1506.95,0.00039452,3]
[310373244,1704519042159,-966.27,0.00039452,3]
[310373245,1704519042168,-515.89,0.00039452,3]
[310373246,1704519042177,-2553.161024,0.0003963,2]
[310373247,1704519042186,-150.80395486,0.0003968,2]
[310373248,1704519042195,-663.71,0.00039726,3]
[310373249,1704519042205,-500.0,0.00039726,3]
[310373250,1704519042214,-1667.24,0.00039726,3]
[310373251,1704519042222,-500.0,0.00039726,3]
[310373252,1704519042231,-9724.27,0.00039726,3]
[310373253,1704519042241,-1506.95,0.00039726,3]
[310373254,1704519042250,-966.27,0.00039726,3]
[310373255,1704519042258,-515.89,0.00039726,3]
[310373256,1704519042271,-283.403252,0.000399,17]
[310373257,1704519042281,-500.0,0.000399,7]
[310373258,1704519042290,-1507.87048,0.000399,2]
[310373259,1704519042299,-4034.81482968,0.0003999,4]
[310373260,1704519042309,-154.82968734,0.0004,4]
[310373261,1704519042319,-1599.00661931,0.0004,4]
[310373262,1704519042329,-1666.60471458,0.0004,2]
[310373263,1704519042338,-350.99116102,0.0004,4]
[310373264,1704519042349,-2000.0,0.0004,19]
[310373265,1704519042358,-663.71,0.0004,3]
[310373266,1704519042367,-500.0,0.0004,3]
[310373267,1704519042377,-1226.39722539,0.0004,14]
[310373270,1704519042386,-1667.24,0.0004,3]
[310373272,1704519042396,-500.0,0.0004,3]
[310373273,1704519042406,-9724.27,0.0004,3]
[310373276,1704519042416,-819.11459049,0.0004,15]
[310373278,1704519042425,-1506.95,0.0004,3]
[310373281,1704519042434,-3866.2845756,0.0004,15]
[310373283,1704519042444,-966.27,0.0004,3]
[310373286,1704519042453,-515.89,0.0004,3]
[310373288,1704519042462,-2000.0,0.0004001,19]
[310373290,1704519042472,-2104.047072,0.0004002,19]
[310373292,1704519042481,-3481.29568938,0.00040178,4]
[310373294,1704519042490,-663.71,0.00040273,3]
[310373295,1704519042500,-500.0,0.00040273,3]
[310373297,1704519042509,-1667.24,0.00040273,3]
[310373299,1704519042520,-500.0,0.00040273,3]
[310373301,1704519042528,-872.26227553,0.00040273,3]
[310373303,1704519042543,-2452.13204473,0.00040273,3]
[310373306,1704519042555,-6399.87567974,0.00040273,3]
[310373307,1704519042564,-1506.95,0.00040273,3]
[310373308,1704519042574,-966.27,0.00040273,3]
[310373310,1704519042584,-515.89,0.00040273,3]
[310373312,1704519042594,-301.60790972,0.00040347,4]
[310373314,1704519042603,-663.71,0.00040547,3]
[310373315,1704519042612,-500.0,0.00040547,3]
[310373316,1704519042621,-1667.24,0.00040547,3]
[310373317,1704519042630,-500.0,0.00040547,3]
[310373318,1704519042640,-7030.09400511,0.00040547,3]
[310373324,1704519045542,-220.09217164,0.00022,2]
[310373327,1704519045552,-154.87609912,0.00024998,2]
[310373329,1704519045562,-500.0,0.00024999,2]
[310373331,1704519045571,-507.48611173,0.00024999,2]
[310373333,1704519045580,-477.5689498,0.00024999,2]
[310373335,1704519045590,-500.0,0.00024999,2]
[310373337,1704519045599,-306.46153928,0.00024999,2]
[310373339,1704519045608,-204.67240706,0.00033999,7]
[310373342,1704519045617,-500.0,0.00033999,7]
[310373345,1704519045627,-479.84615446,0.00033999,7]
[310373346,1704519045636,-500.0,0.00033999,4]
[310373348,1704519045645,-527.59740919,0.00033999,4]
[310373349,1704519045655,-193.37474437,0.00033999,4]
[310373350,1704519045664,-262.86047927,0.00033999,4]
[310373351,1704519045769,-175.60349714,0.00033999,4]
[310373352,1704519045779,-500.0,0.00033999,4]
[310373353,1704519045788,-435.14086557,0.00033999,4]
[310373354,1704519045797,-500.0,0.00033999,4]
[310373355,1704519045806,-560.68879733,0.00033999,4]
[310373356,1704519045815,-500.0,0.00033999,4]
[310373357,1704519045825,-316.55844551,0.00034854,7]
[310373358,1704519045834,-545.516598,0.00034854,7]
[310373359,1704519045854,-500.0,0.00034854,7]
[310373360,1704519045864,-186.48894239,0.00034854,7]
[310373361,1704519045874,-203.84798231,0.00034854,7]
[310373362,1704519045884,-500.0,0.00034854,7]
[310373363,1704519045894,-500.0,0.00034854,7]
[310373364,1704519045904,-299.46473181,0.00035615,4]
[310373365,1704519045914,-2694.17599489,0.00040547,3]
[310373366,1704519045923,-1506.95,0.00040547,3]
[310373367,1704519045933,-966.27,0.00040547,3]
[310373368,1704519045943,-515.89,0.00040547,3]
[310373369,1704519045954,-4290.8308025,0.00040763,10]
[310373370,1704519045964,-5400.87835341,0.00040771,10]
[310373371,1704519045974,-5400.87835341,0.00040772,10]
[310373372,1704519045983,-4290.8308025,0.00040784,10]
[310373373,1704519045993,-2976.67491645,0.00040792,10]
[310373376,1704519046017,-271.72897209,0.00024998,2]
[310373378,1704519046030,-1654.78102791,0.00040792,10]
[310373394,1704519046453,-0.07399893,0.00040792,10]
[310373426,1704519217011,-1194.15929222,0.00021602,2]
[310373428,1704519233394,12619.84070778,0.00021602,2]
[310373444,1704519334414,200.0,0.00023752,7]
[310373446,1704519335186,280.0,0.00026128,15]
[310373452,1704519356862,2698.01438762,0.00021611,5]
[310373453,1704519360049,758.1230586,0.0001945,2]
[310373456,1704519364456,292.60638471,0.00022,4]
[310373457,1704519364693,270.59361061,0.0002,2]
[310373458,1704519365675,555.6067077,0.00019596,5]
[310373459,1704519367937,464.67446887,0.00021591,20]
[310373460,1704519367974,5000.0,0.00021591,5]
[310373462,1704519368974,190003.71293628,0.00026128,7]
[310373464,1704519380447,292.60638471,0.00022,4]
[310373466,1704519384185,757.03568012,0.00019431,2]
[310373468,1704519388029,576.79657424,0.00020942,5]
[310373492,1704519495168,24900.0,0.00019269,2]
[310373493,1704519524210,231.909252,0.00019239,2]
[310373494,1704519535096,1204.2071574,0.00019439,2]
[310373497,1704519591317,976.288089,0.00019448,2]
[310373498,1704519634930,200.0,0.00022167,7]
[310373499,1704519635727,280.0,0.00024384,7]
[310373500,1704519637114,391.0,0.00026822,15]
[310373501,1704519658491,250.0,0.0001912,2]
[310373503,1704519735640,191.12409207,0.00019939,3]
[310373508,1704519750227,173.30357453,0.0001994,2]
[310373510,1704519791540,183.157983,0.00019178,2]
[310373513,1704519926602,24900.0,0.00019024,2]
[310373514,1704519931749,2214.196009,0.00019023,2]
[310373515,1704519934768,200.0,0.00022021,7]
[310373516,1704519935557,280.0,0.00024223,7]
[310373517,1704519937103,391.0,0.00026645,15]
[310373555,1704520073698,154.82968734,0.0002,2]
[310373556,1704520077415,190.85270949,0.0002,2]
[310373557,1704520077658,242.3851774,0.0002,2]
[310373558,1704520091704,260.92812078,0.0002,2]
[310373559,1704520092487,860.12683361,0.0002,2]
[310373560,1704520093390,154.82968734,0.0002,2]
[310373561,1704520093668,286.11508071,0.0002,2]
[310373562,1704520093836,271.72897209,0.0002,2]
[310373563,1704520095261,176.1898131,0.0002,2]
[310373564,1704520095760,1171.77383703,0.0002,2]
[310373567,1704520099832,1020.21297213,0.0002,2]
[310373568,1704520103936,2991.89800169,0.0002,2]
[310373569,1704520106916,250.0,0.00019123,2]
[310373570,1704520107918,359.96789117,0.0002,2]
[310373571,1704520108486,251.83323535,0.0002,2]
[310373572,1704520109404,154.82968734,0.0002,2]
[310373573,1704520110792,174.73357117,0.0002,2]
[310373574,1704520111276,236.00464652,0.0002,2]
[310373575,1704520111769,781.46006972,0.0002,2]
[310373577,1704520113435,198.66992878,0.0002,2]
[310373578,1704520113833,458.34806547,0.0002,2]
[310373579,1704520114080,676.3587277,0.0002,2]
[310373580,1704520116442,47.20452082,0.0002,2]
[310373610,1704520232129,-212.77620315,0.00019896,2]
[310373611,1704520232139,-168.56942713,0.00019897,2]
[310373613,1704520232149,-334.45028395,0.00019995,2]
[310373614,1704520232160,-1497.35102206,0.00019995,2]
[310373616,1704520233717,-10221.67311738,0.00019995,2]
[310373617,1704520233730,-1627.82526928,0.00019995,2]
[310373618,1704520233741,-1029.74071675,0.00019996,2]
[310373619,1704520233753,-10487.05697578,0.00019996,2]
[310373620,1704520233763,-1577.33542027,0.00019997,2]
[310373621,1704520233773,-322.14948125,0.00019997,2]
[310373622,1704520233784,-174.73357117,0.00019997,2]
[310373623,1704520233794,-20845.41719757,0.00019997,2]
[310373624,1704520233805,-154.84519194,0.0002,2]
[310373625,1704520233816,-198.63264518,0.0002,2]
[310373626,1704520233827,-10877.01,0.00020106,3]
[310373627,1704520233838,-265.40144999,0.00020115,2]
[310373628,1704520233849,-15662.89,0.00020116,3]
[310373629,1704520233859,-13052.41,0.00020116,3]
[310373630,1704520233870,-236.00464652,0.00020125,2]
[310373631,1704520233881,-676.3587277,0.00020125,2]
[310373632,1704520233891,-154.82968734,0.00020125,2]
[310373633,1704520233902,-2991.89800169,0.00020125,2]
[310373634,1704520233912,-18795.47,0.00020126,3]
[310373635,1704520233922,-322.57910218,0.00020154,2]
[310373636,1704520233933,-242.3851774,0.00020154,2]
[310373637,1704520233943,-471.49969074,0.00020154,2]
[310373638,1704520233953,-2098.68320007,0.00020155,2]
[310373639,1704520233963,-469.27046295,0.00020155,2]
[310373640,1704520233971,-2068.68169854,0.00020155,2]
[310373641,1704520233980,-3972.80058952,0.00020156,2]
[310373642,1704520234398,200.0,0.00021993,7]
[310373643,1704520235163,280.0,0.00024193,7]
[310373644,1704520236043,391.0,0.00026612,15]
[310373678,1704520238173,-32824.03848374,0.00020156,2]